Cogmind - Beta 11.1 @@@ ROGUE MODE // 2022.06.21 @ 00:03:41 Player: ChromeKnight Result: Destroyed by D-53 Grenadier with Mini Grenade Launcher Performance ------------- Evolutions (0) 0 Regions Visited (2) 400 Robots Destroyed (12) 60 Value Destroyed (351) 351 Prototype IDs (0) 0 Alien Tech Used (0) 0 Bonus (0) 0 TOTAL SCORE: 811 Bonus ------- None Cogmind --------- Core Integrity 0/250 Matter 290/300 Energy 144/160 System Corruption 0% Temperature Cool (24) Movement Walking (190) Ox1 Location -10/Mines Parts ------- > --- POWER (1) -------- Light Nuclear Core > --- PROPULSION (2) --- Aluminum Leg > --- UTILITY (2) ------ Medium Storage Unit > --- WEAPON (2) ------- Small Laser Small Laser > --- INVENTORY (10) --- Light Ion Engine Flight Unit Small Storage Unit Large Storage Unit Sensor Array Peak State ------------ > --- POWER ------------ Light Nuclear Core > --- PROPULSION ------- Aluminum Leg > --- UTILITY ---------- Improved Heat Sink Medium Storage Unit > --- WEAPON ----------- Small Laser Assault Rifle > --- INVENTORY -------- Light Ion Engine Flight Unit Small Storage Unit Large Storage Unit Sensor Array [Rating: 10] Favorites ----------- Power Ion Engine Engine Ion Engine Power Core Light Nuclear Core Propulsion Light Treads Treads Light Treads Leg Aluminum Leg Utility Medium Storage Unit Device Improved Heat Sink Storage Medium Storage Unit Protection Weapon Shielding Weapon Assault Rifle Energy Gun EM Pulse Gun Ballistic Gun Assault Rifle Build | -11 -10 -10 ------- Run | Scr Mat Min Slots Evolved . | . . . Power . | . . . Propulsion . | . . . Utility . | . . . Weapon . | . . . Parts Attached 22 | 6 9 7 Power 4 | 1 2 1 Engine 3 | 1 2 . Core 1 | . . 1 Reactor . | . . . Propulsion 4 | 2 1 1 Treads 3 | 2 1 . Leg 1 | . . 1 Wheel . | . . . Hover . | . . . Flight . | . . . Utility 4 | 1 2 1 Device 1 | . . 1 Storage 2 | 1 1 . Processor . | . . . Hackware . | . . . Protection 1 | . 1 . Artifact . | . . . Weapon 10 | 2 4 4 Energy Gun 6 | 1 2 3 Energy Cannon . | . . . Ballistic Gun 4 | 1 2 1 Ballistic Cannon . | . . . Launcher . | . . . Special Weapon . | . . . Impact Weapon . | . . . Slashing Weapon . | . . . Piercing Weapon . | . . . Special Melee Weapon . | . . . Unidentified Prototypes . | . . . Parts Lost 5 | . 3 2 Power . | . . . Propulsion 2 | . 2 . Utility 1 | . . 1 Weapon 2 | . 1 1 Highest Loss Streak 2 | . 1 2 To Critical Strikes . | . . . Average Slot Usage (%) 86 | . 89 76 Engine 10 | . 14 . Core 3 | . . 11 Treads 18 | . 25 . Leg 3 | . . 12 Device 3 | . . 11 Storage 14 | . 14 14 Protection 5 | . 7 . Energy Gun 13 | . 13 13 Ballistic Gun 13 | . 13 13 Naked Turns . | . . . Heaviest Build 20 | 12 20 19 Greatest Support 40 | 40 40 10 Greatest Overweight (x) 6 | 1 6 4 Average Overweight (x) . | . . 1 Largest Inventory Capacity 10 | 8 10 10 Average Capacity 9 | 7 9 10 Most Carried 6 | 1 6 6 Average Carried 3 | . 3 5 Final Capacity 10 | 8 10 10 Final Carried 5 | 1 5 5 Class Distribution -------------------- 77% | Mutant 22% | Scavenger-Mutant Dominant Class ---------------- Mutant | -10/Materials Scavenger-Mutant | -10/Mines Resources | -11 -10 -10 ----------- Run | Scr Mat Min Matter Collected 508 | 157 276 75 Remotely . | . . . Salvage Created 507 | . 412 95 Parts 29 | . 24 5 Haulers Intercepted 1 | . 1 . Recyclers Shooed . | . . . Parts Field Recycled . | . . . Retrieved Matter . | . . . Parts Self-Destructed . | . . . Prevented . | . . . Kills | -11 -10 -10 ------- Run | Scr Mat Min Combat Hostiles Destroyed 8 | . 6 2 Guns 8 | . 6 2 Classes Destroyed 5 | . 5 . Hauler 1 | . 1 . Recycler 1 | . 1 . Operator 1 | . 1 . Watcher 1 | . 1 . Grunt 8 | . 6 2 Best Kill Streak 3 | . 3 2 Combat Bots Only 2 | . 2 2 Max Kills in Single Turn 1 | . 1 1 Gunslinging . | . . . Exploded . | . . . Melee . | . . . Uniques/NPCs Destroyed . | . . . Combat | -11 -10 -10 -------- Run | Scr Mat Min Damage Taken 951 | . 579 372 Core 258 | . 83 175 Absorbed by Shields . | . . . Redirected to Shielding 44 | . 44 . Core Remaining (%) 100 | 100 . . Volleys Fired 40 | . 31 9 Largest 2 | . 2 2 Hottest 80 | . 60 80 Shots Fired 75 | . 59 16 Gun 75 | . 59 16 Cannon . | . . . Launcher . | . . . Special . | . . . Kinetic 36 | . 31 5 Thermal 17 | . 6 11 Explosive . | . . . Electromagnetic 22 | . 22 . Robot Hit Streak 12 | . 9 12 Robot Miss Streak 3 | . 3 2 Penetration Max . | . . . Secondary Targets . | . . . Shots Hit Robots 53 | . 42 11 Core Hits 24 | . 18 6 Critical Kills . | . . . Critical Parts Destroyed . | . . . Critical Strikes . | . . . Melee Attacks . | . . . Impact . | . . . Slashing . | . . . Piercing . | . . . Sneak Attacks . | . . . Combat Hostiles . | . . . Follow-up Attacks . | . . . Damage Inflicted 833 | . 713 120 Guns 697 | . 577 120 Cannons . | . . . Explosions 136 | . 136 . Melee . | . . . Ramming . | . . . Kinetic 326 | . 281 45 Thermal 276 | . 201 75 Explosive . | . . . Electromagnetic 231 | . 231 . Impact . | . . . Slashing . | . . . Piercing . | . . . Highest Corruption . | . . . Average Corruption . | . . . Corruption Purged . | . . . Corruption Blocked . | . . . Overload Shots . | . . . Overflow Damage 54 | . 54 . Projectiles . | . . . Explosions 54 | . 54 . Melee . | . . . Knockbacks . | . . . Impact . | . . . Kinetic . | . . . Secondary . | . . . Self-Inflicted Damage 112 | . 112 . Shots 2 | . 2 . Rammed . | . . . Targets Rammed . | . . . Kicked . | . . . Crushed . | . . . Highest Temperature 69 | . 69 24 Average Temperature 22 | . 24 7 Received Heat Transfer 288 | . 267 21 Siege Activations . | . . . Robots Corrupted . | . . . Combat Hostiles . | . . . Parts Fried . | . . . Impact Corruptions . | . . . Robots Melted . | . . . Combat Hostiles . | . . . Parts Melted . | . . . Heat Transferred 475 | . 300 175 Parts Sabotaged . | . . . Parts Stolen . | . . . Parts Stripped . | . . . Power Chain Reactions 2 | . 2 . Missiles Intercepted . | . . . Alert | -11 -10 -10 ------- Run | Scr Mat Min Peak Influence 126 | . 126 55 Initial . | . . . Average 47 | . 50 49 Maximum Alert Level . | . . . Low Security (%) 100 | 100 100 100 Level 1 . | . . . Level 2 . | . . . Level 3 . | . . . Level 4 . | . . . Level 5 . | . . . High Security . | . . . Max Security . | . . . Squads Dispatched 1 | . 1 . Investigation . | . . . Extermination . | . . . Reinforcement 1 | . 1 . Assault . | . . . Garrison . | . . . Intercept . | . . . Searches Triggered . | . . . Construction Impeded . | . . . Haulers Reinforced . | . . . Active Scanning Responses . | . . . Cargo Convoy Interrupts . | . . . Stealth | -11 -10 -10 --------- Run | Scr Mat Min Distress Signals 1 | . 1 . Communications Jammed . | . . . Distress Signals . | . . . Times Spotted 16 | . 12 4 Peak Tracking Total 3 | . 3 2 Tactical Retreats 1 | . 1 . Traps | -11 -10 -10 ------- Run | Scr Mat Min Traps Triggered 2 | . 2 . Indirectly . | . . . Trap Hack Attempts . | . . . Triggered . | . . . Disarmed . | . . . Reprogrammed . | . . . Reused . | . . . Traps Extracted . | . . . Installed . | . . . Triggered . | . . . Machines | -11 -10 -10 ---------- Run | Scr Mat Min Machines Disabled . | . . . Max in Single Turn . | . . . Machines Sabotaged . | . . . Garrisons Compromised . | . . . Overloaded Fab Kills . | . . . Hacking | -11 -10 -10 --------- Run | Scr Mat Min Machines Accessed 4 | . 3 1 Terminals 4 | . 3 1 Fabricators . | . . . Repair Stations . | . . . Recycling Units . | . . . Scanalyzers . | . . . Garrison Access . | . . . Total Hacks 11 | . 8 3 Successful 6 | . 4 2 Failed 5 | . 4 1 Catastrophic . | . . . Database Lockouts . | . . . Manual 9 | . 8 1 Terminals 11 | . 8 3 Fabricators . | . . . Repair Stations . | . . . Recycling Units . | . . . Scanalyzers . | . . . Garrison Access . | . . . Terminal Hacks 1 | . . 1 Zone Layout 1 | . . 1 Fabricator Hacks . | . . . Repair Station Hacks . | . . . Recycling Unit Hacks . | . . . Scanalyzer . | . . . Garrison Access Hacks . | . . . Unauthorized Hacks 5 | . 4 1 Terminals 5 | . 4 1 Botnet 4 | . 3 1 Operators 1 | . 1 . Fabricators . | . . . Repair Stations . | . . . Recycling Units . | . . . Scanalyzers . | . . . Garrison Access . | . . . Data Cores Recovered . | . . . Used . | . . . Hacking Detections 3 | . 2 1 Full Trace Events 2 | . 1 1 Feedback Events . | . . . Feedback Blocked . | . . . Robot Schematics Acquired . | . . . Robots Built . | . . . Authchips . | . . . Time . | . . . Total Robot Build Rating . | . . . Part Schematics Acquired . | . . . Parts Built . | . . . Authchips . | . . . Time . | . . . Total Part Build Rating . | . . . Parts Repaired . | . . . Time . | . . . Parts Recycled . | . . . Recycled Matter . | . . . Retrieved Matter . | . . . Retrieved Components . | . . . Parts Scanalyzed . | . . . Part Schematics Acquired . | . . . Parts Damaged . | . . . Bothacking | -11 -10 -10 ------------ Run | Scr Mat Min Used RIF Installer . | . . . Robots Hacked . | . . . Non-combat . | . . . Combat . | . . . Robot Hacks Applied . | . . . Relay Couplers Released . | . . . Fabnet Peak Effective % . | . . . Robots Rewired . | . . . Allies Hacked . | . . . Hacks Repelled . | . . . Allies | -11 -10 -10 -------- Run | Scr Mat Min Total Allies 2 | . . 2 Largest Group 2 | . . 2 Highest-Rated Group 50 | . . 50 Highest-Rated Ally 31 | . . 31 Total Orders . | . . . Ally Attacks 3 | . . 3 Total Damage 36 | . . 36 Kills . | . . . Allies Corrupted . | . . . Allies Melted . | . . . Intel | -11 -10 -10 ------- Run | Scr Mat Min Robot Analysis Total . | . . . Derelict Logs Recovered . | . . . Drone Launches . | . . . Drone Recoveries . | . . . Exploration | -11 -10 -10 ------------- Run | Scr Mat Min Turns Passed 1235 | 72 841 322 Spaces Moved 641 | 43 449 149 Core 15 | 6 1 8 Treads 485 | 37 448 . Legs 141 | . . 141 Wheels . | . . . Hover . | . . . Flight . | . . . Fastest Speed 50 | 50 160 190 Average Speed 166 | 145 160 192 Slowest Speed 350 | 160 350 250 Overloaded Moves . | . . . Propulsion Burnouts . | . . . Robots Hopped . | . . . Cave-ins Triggered . | . . . Exploration Rate (%) 36 | 4 70 34 Regions Visited 2 Branch Regions 1 Pre-discovered Areas . | . . . Known Exits Taken . | . . . Unknown Exits Taken 2 | 1 1 . Scrap Searched . | . . . Spaces Dug . | . . . Terrain Destroyed 6 | . 6 . Melee . | . . . Projectile . | . . . AOE 6 | . 6 . Terrain Rammed . | . . . Walls Destroyed . | . . . Machines Disabled . | . . . Actions | -11 -10 -10 --------- Run | Scr Mat Min Total 729 | 49 510 170 Wait 16 | . 15 1 Move 639 | 42 448 149 Hop . | . . . Pick Up 6 | 1 5 . Fast Attach 17 | 6 7 4 Attach 3 | . 1 2 Detach 1 | . . 1 Swap 2 | . 1 1 Drop 5 | . 2 3 Fire 40 | . 31 9 Melee . | . . . Ram . | . . . Kick . | . . . Crush . | . . . Escape Stasis . | . . . Rewire . | . . . Trap . | . . . Miscellaneous . | . . . Route ------- -11/Scrapyard -10/Materials (discovered 3 exits: [*Mat x2] / *Min) -10/Mines (discovered 1 exit: [*Mat]) History --------- Turn | Location | Event 7 | -11/Scrapyard | Discovered new exit (range 16) 73 | -11/Scrapyard | Entered Materials 287 | -10/Materials | Discovered new exit (range 11) 300 | -10/Materials | Build established: Mutant 317 | -10/Materials | Discovered new exit (range 14) 752 | -10/Materials | Discovered new exit (range 13) 914 | -10/Materials | Entered Mines 1076 | -10/Mines | Discovered new exit (range 13) 1187 | -10/Mines | Assembled infested the area 1229 | -10/Mines | Core integrity fell below 50% 1235 | -10/Mines | Core integrity fell below 20% 1236 | -10/Mines | Destroyed by D-53 Grenadier with Mini Grenade Launcher Last Messages --------------- Testing... Terminal linked with 0 systems. Awaiting botnet instructions. >>Layout(Zone) Retrieving Zone 2S layout... Downloaded map data. 01011_ Acquired 20 matter. 01067_ K-01 Serf collects debris. 01076_ EXIT=FOUND 01077_ K-01 Serf collects debris. 01187_ ALERT: Infestation in the mines, dispatching Demolisher response squad. 01206_ A pair of derelicts emerge from the shadows: "We're, um, lost. You wouldn't happen to know the way out of here, would you?" 01226_ D-53 Grenadier unfolds itself. 01228_ 13-R42(z) destroyed. 01228_ 2E-RHT(g) destroyed. 01228_ Assault Rifle destroyed. 01230_ Imp. Heat Sink destroyed. 01235_ The unstable cave ceiling collapses. Map ----- +----------------------------------------------------+ | ?????????????????????????????????????????????????? | | ?????????????????????????????????????????????????? | | ?????????????????????????????????????????????????? | | ?????????????????????????????????????????????????? | | ?????????????????????????????????????????????????? | | ?????????????????????????????????????????????????? | | ?????????????????????????????????????????????????? | | ?????????????????????????????????????????????????? | | ?????????????????????????????????????????????????? | | ?????????????????????????????????????????????????? | | ?????????????????????????????????????????????????? | | ?????????????????????????????????????????????????? | | ?????????????????????????????????????????????????? | | ?????????????????????????????????????????????????? | | ?????????????????????????????????????????????????? | | ?????????????????????????????????????????????????? | | ?????????????????????????????????????????????????? | | ?????????????????????????????????????????????????? | | ?????????????????????????????????????????????????? | | ????????????????????????????###??????????????????? | | ?????????????????###???##?## ???????????????????? | | ???????????## ### ### # #???????????????????? | | ???????????# #???????????????????? | | ???????????# ##??????????????????? | | ????????????# #??????????????????? | | ?????????????# ### @ #??????????????????? | | ???????????????????## #??????????????????? | | ????????????????????# #??????????###?????? | | ????????????????????# ##????????## ##????? | | ??????????????????? #########?# #????? | | ??????????????????### %dd #?# #????? | | ????????????????????# ####### #?# #?????? | | ????????????????????#% # ##?????# #?# ##????? | | ????????????????????# ######??????# ### ##???? | | ????????????????????a ????????????# ##??? | | ???????????????????? ?????????????##### """ #??? | | ???????????????????###?????????????????# """ #??? | | ??????????????????????????????????????## """ #??? | | ??????????????????????????????????????# ##??? | | ??????????????????????????????????????# ###??# | | ??????????????????????????????????????# ####? ?? | | ??????????????????????????????????????# #???? ??# | | ??????????????????????????????????????# #???# ??# | | ?????????????????????????????????????##! ##??# #?# | | ?????????????????????????????????????# #??# #?# | | ????????????????????????????????????## #??# #?# | | ?????????????????????????????????#### ##??# #?# | | ????????????????????????????????## ##???# #?# | | ???????????????????????????????## ! ##????# ### | | ???????????????????????????##### ###????##! ## | +----------------------------------------------------+ Best States ------------- Heat Dissipation 39 Energy Generation 14 Energy Capacity 250 Matter Stores 300 Matter Capacity 300 Sight Range 16 Terrain Scan Density 10 Weapon Shielding 33 Evasion (%) 40 Recoil Reduction 2 Item Schematics ----------------- None Robot Schematics ------------------ None Fabricated ------------ Nothing Alien Tech Used ----------------- None Achievements -------------- None Challenges ------------ None Game ------ Seed MiningDisruptionScreen Manual? 0 Play Time 00:06:45 Cumulative 343.2 hours Start 2022.06.20 @ 23:58:23 End 2022.06.21 @ 00:03:41 Sessions 1 Manual Loads 0 Difficulty Rogue Special Mode None Game No. 611 Rogue 456 Adventurer 148 Explorer 7 Win Type - Total 12 Types 10/0/1/1/0/0/0/0/0 Lore% 75 Gallery% 87 Achievement% 68 Wizard Run 0 Options --------- ASCII 0 Keyboard 0 Movement Numpad Keybinds 0 Fullscreen 1 Font 18/SmallcapsGlow Map View 76x50 Tactical HUD 1 Map Filters NONE Filters NONE Steam 1 RUN: 1bd9156f-8256-4072-92f6-321d64e84211